fUST/lending_fUST_20260130
["ID","MTS","AMOUNT","RATE_DAILY","PERIOD"]
[404011369,1769717433350,-500.0,0.00013698,2]
[404011370,1769717433359,-500.0,0.00013698,2]
[404011371,1769717433369,-500.0,0.00013698,2]
[404011372,1769717433379,-500.0,0.00013698,2]
[404011373,1769717433388,-454.58797093,0.00013698,2]
[404011374,1769717433397,-500.0,0.00013698,2]
[404011375,1769717433408,-500.0,0.00013698,2]
[404011376,1769717433417,-500.0,0.00013698,2]
[404011377,1769717433427,-500.0,0.00013698,2]
[404011378,1769717433436,-500.0,0.00013698,2]
[404011379,1769717433445,-500.0,0.00013698,2]
[404011380,1769717433454,-500.0,0.00013698,2]
[404011381,1769717433464,-500.0,0.00013698,2]
[404011382,1769717433474,-500.0,0.00013698,2]
[404011383,1769717433483,-500.0,0.00013698,2]
[404011384,1769717433493,-500.0,0.00013698,2]
[404011385,1769717433502,-387.71058038,0.00013698,2]
[404011386,1769717433512,-1000.0,0.00013698,2]
[404011387,1769717433521,-1000.0,0.00013698,2]
[404011388,1769717433531,-1000.0,0.00013698,2]
[404011389,1769717433540,-1000.0,0.00013698,2]
[404011390,1769717433550,-1000.0,0.00013698,2]
[404011391,1769717433561,-1000.0,0.00013698,2]
[404011392,1769717433570,-468.62094935,0.00013698,2]
[404011393,1769717433587,-472.51156303,0.00013698,2]
[404011394,1769717433596,-527.48843697,0.00013699,2]
[404011395,1769717433607,-2600.0,0.00013699,2]
[404011396,1769717433618,-2750.0,0.00013699,2]
[404011397,1769717433629,-1826.4679026,0.00013699,2]
[404011398,1769717433640,-1428.97879449,0.00013699,2]
[404011407,1769717438057,-621.78829552,0.00011816,2]
[404011408,1769717438066,-151.50170448,0.00012364,2]
[404011409,1769717438139,-493.29275798,0.00012364,2]
[404011410,1769717438149,-668.65185757,0.00012912,2]
[404011411,1769717438158,-693.3919763,0.0001346,2]
[404011412,1769717438167,-17513.85904224,0.00013699,2]
[404011413,1769717438177,-291.260807,0.00013699,2]
[404011414,1769717438187,-1000.0,0.00013699,2]
[404011415,1769717438197,-500.0,0.00013699,2]
[404011416,1769717438206,-160.2371112,0.00013699,2]
[404011417,1769717438215,-500.74038109,0.00013699,2]
[404011418,1769717438225,-220.94282336,0.00013699,2]
[404011419,1769717438234,-507.27015434,0.00013699,2]
[404011420,1769717438244,-500.0,0.00013699,2]
[404011421,1769717438254,-500.43426099,0.00013699,2]
[404011422,1769717438263,-158.21096916,0.00013699,2]
[404011423,1769717438273,-152.58064698,0.00013699,2]
[404011424,1769717438283,-526.86363123,0.00013699,2]
[404011425,1769717438293,-500.6948387,0.00013699,2]
[404011426,1769717438302,-500.18246026,0.00013699,2]
[404011427,1769717438312,-500.0,0.00013699,2]
[404011428,1769717438321,-262.62197913,0.00013699,2]
[404011429,1769717438334,-262.05,0.000137,2]
[404011430,1769717438344,-1000.0,0.00013821,2]
[404011431,1769717438353,-462.44559537,0.00013821,2]
[404011432,1769717438363,-1000.0,0.00013821,2]
[404011433,1769717438374,-1000.0,0.00013821,2]
[404011434,1769717438383,-5464.3768503,0.00014,2]
[404011435,1769717438393,-273.09201913,0.00014008,2]
[404011436,1769717438403,-262.05,0.000141,2]
[404011437,1769717438412,-339.76894093,0.00014247,2]
[404011438,1769717438422,-432.98089674,0.00014247,2]
[404011439,1769717438438,-41.25348524,0.00014247,2]
[404011440,1769717438447,-172.70087908,0.00014368,2]
[404011441,1769717438457,-1317.32817444,0.00014368,2]
[404011442,1769717438473,-182.67182556,0.00014368,2]
[404011443,1769717438483,-1500.0,0.00014368,2]
[404011444,1769717438493,-262.05,0.000145,2]
[404011445,1769717438502,-453.51713342,0.00014588,2]
[404011446,1769717438511,-151.0,0.000146,2]
[404011447,1769717438521,-151.0,0.000146,2]
[404011448,1769717438530,-515.69790432,0.0001464,2]
[404011548,1769717440808,-0.00184982,0.0001464,2]
[404011573,1769717441038,-636.30024586,0.0001464,2]
[404011575,1769717441047,-262.05,0.000149,2]
[404011577,1769717441058,-712.6308883,0.00014916,2]
[404011579,1769717441067,-2000.0,0.00014916,2]
[404011581,1769717441078,-1000.0,0.00014932,2]
[404011583,1769717441089,-244.0,0.00014932,2]
[404011585,1769717441098,-1500.0,0.00015,2]
[404011587,1769717441107,-160.0,0.00015266,2]
[404011589,1769717441117,-262.05,0.000153,2]
[404011591,1769717441127,-10000.0,0.00015342,2]
[404011593,1769717441138,-10000.0,0.00015342,2]
[404011595,1769717441147,-10000.3,0.00015342,2]
[404011597,1769717441157,-262.05,0.000158,2]
[404011599,1769717441168,-1341.79490645,0.00016025,2]
[404011601,1769717441178,-262.05,0.000162,2]
[404011603,1769717441190,-151.0,0.000164,2]
[404011606,1769717441199,-151.0,0.000164,2]
[404011608,1769717441209,-1000.0,0.00016426,2]
[404011610,1769717441218,-492.0,0.00016426,2]
[404011611,1769717441227,-186.31,0.0001644,2]
[404011613,1769717441237,-506.52562953,0.00016588,2]
[404011615,1769717441246,-262.05,0.000166,2]
[404011617,1769717441255,-262.05,0.00017,2]
[404011619,1769717441264,-262.05,0.000174,2]
[404011621,1769717441274,-500.0,0.0001747,2]
[404011623,1769717441286,-500.0,0.0001747,2]
[404011625,1769717441295,-500.0,0.0001747,2]
[404011627,1769717441305,-500.0,0.0001747,2]
[404011629,1769717441314,-500.0,0.0001747,2]
[404011631,1769717441323,-156.20183162,0.0001747,2]
[404011633,1769717441336,-500.0,0.00017607,2]
[404011635,1769717441345,-502.77827371,0.00017607,2]
[404011637,1769717441354,-226.92310228,0.00017607,2]
[404011639,1769717441363,-500.0,0.00017607,2]
[404011641,1769717441373,-500.0,0.00017607,2]
[404011643,1769717441383,-500.0,0.00017607,2]
[404011645,1769717441393,-170.34291461,0.00017607,2]
[404011647,1769717441402,-252.97588223,0.00017744,2]
[404011649,1769717441413,-500.0,0.00017744,2]
[404011651,1769717441422,-500.0,0.00017744,2]
[404011652,1769717441431,-200.0,0.00017744,2]
[404011654,1769717441440,-500.0,0.00017744,2]
[404011656,1769717441449,-500.0,0.00017744,2]
[404011658,1769717441458,-262.05,0.000178,2]
[404011660,1769717441467,-600.0,0.00017881,2]
[404011662,1769717441477,-250.79251461,0.00017881,2]
[404011664,1769717441486,-250.81623099,0.00017881,2]
[404011666,1769717441495,-233.42207071,0.00017881,2]
[404011668,1769717441504,-500.0,0.00017881,2]
[404011670,1769717441512,-500.0,0.00017881,2]
[404011672,1769717441521,-210.0,0.00017973,3]
[404011674,1769717441531,-500.0,0.00018018,2]
[404011676,1769717441540,-350.45540953,0.00018018,2]
[404011678,1769717441550,-1000.0,0.00018068,2]
[404011680,1769717441559,-791.0,0.00018068,2]
[404011682,1769717441569,-262.05,0.000182,2]
[404011683,1769717441578,-151.0,0.000182,2]
[404011685,1769717441587,-151.0,0.000182,2]
[404011687,1769717441597,-559.53412565,0.00018588,2]
[404011689,1769717441606,-262.05,0.000186,2]
[404011690,1769717441615,-260.9244988,0.0001863,2]
[404011691,1769717441625,-262.05,0.00019,2]
[404011692,1769717441635,-2540.75,0.00019178,2]
[404011693,1769717441644,-251.86,0.00019178,2]
[404011694,1769717441653,-158.7,0.000193,2]
[404011695,1769717441662,-1602.78,0.000193,2]
[404011696,1769717441671,-168.1,0.000193,2]
[404011697,1769717441680,-630.0,0.00019423,2]
[404011698,1769717441690,-418.0,0.00019484,2]
[404011699,1769717441699,-716.0,0.00019484,2]
[404011700,1769717441709,-180.914,0.00019484,2]
[404011701,1769717441719,-262.05,0.000195,2]
[404011702,1769717441728,-1341.79490645,0.00019746,2]
[404011703,1769717441737,-1000.0,0.00019875,2]
[404011704,1769717441746,-1000.0,0.00019875,2]
[404011705,1769717441755,-262.05,0.000199,2]
[404011706,1769717441764,-151.0,0.0002,2]
[404011707,1769717441774,-151.0,0.0002,2]
[404011708,1769717441783,-1225.595878,0.0002,7]
[404011709,1769717441793,-1041.66666667,0.00020149,2]
[404011710,1769717441802,-262.05,0.000203,2]
[404011711,1769717441812,-175.085126,0.00020412,7]
[404011712,1769717441821,-478.94464375,0.00020462,2]
[404011713,1769717441831,-291.260807,0.00020548,2]
[404011715,1769717441840,-612.54262176,0.00020588,2]
[404011717,1769717441850,-262.05,0.000207,2]
[404011719,1769717441859,-262.05,0.000211,2]
[404011721,1769717441868,-560.059045,0.00021336,7]
[404011723,1769717441877,-262.05,0.000215,2]
[404011725,1769717441887,-350.17025,0.000216,7]
[404011727,1769717441896,-196.020667,0.00021701,7]
[404011729,1769717441905,-151.0,0.000218,3]
[404011731,1769717441914,-151.0,0.000218,3]
[404011733,1769717441923,-1000.0,0.00021862,10]
[404011735,1769717441933,-1000.0,0.00021862,10]
[404011737,1769717441942,-579.0,0.00021862,10]
[404011739,1769717441950,-262.05,0.000219,2]
[404011741,1769717441959,-1369.0,0.00022173,2]
[404011743,1769717441968,-2150.0,0.00022173,2]
[404011745,1769717441978,-153.98,0.000222,2]
[404011747,1769717441987,-398.76,0.000222,7]
[404011749,1769717441996,-262.05,0.000223,2]
[404011751,1769717442005,-630.0,0.00022423,2]
[404011753,1769717442014,-418.0,0.00022484,2]
[404011755,1769717442023,-172.09,0.00022484,2]
[404011757,1769717442032,-179.0,0.00022484,2]
[404011759,1769717442041,-665.55111787,0.00022588,2]
[404011761,1769717442051,-262.05,0.000227,2]
[404011763,1769717442060,-164.0,0.00022904,8]
[404011765,1769717442069,-160.01687,0.00023043,30]
[404011767,1769717442079,-262.05,0.000232,2]
[404011769,1769717442088,-1341.79490645,0.00023466,2]
[404011771,1769717442096,-262.05,0.000236,2]
[404011773,1769717442106,-151.0,0.000236,6]
[404011775,1769717442114,-151.0,0.000236,7]
[404011777,1769717442123,-262.05,0.00024,2]
[404011779,1769717442132,-1000.0,0.00024049,10]
[404011781,1769717442141,-1000.0,0.00024049,10]
[404011783,1769717442150,-1000.0,0.00024049,10]
[404011785,1769717442159,-262.05,0.000244,2]
[404011787,1769717442169,-718.55961399,0.00024588,2]
[404011789,1769717442178,-262.05,0.000248,2]
[404011791,1769717442187,-1369.0,0.00025173,2]
[404011793,1769717442196,-2150.0,0.00025173,2]
[404011795,1769717442206,-262.05,0.000252,2]
[404011797,1769717442215,-398.76,0.000252,7]
[404011799,1769717442225,-151.0,0.000252,20]
[404011801,1769717442234,-1602.78,0.000253,14]
[404011803,1769717442243,-151.0,0.000254,16]
[404011805,1769717442252,-151.0,0.000254,17]
[404011807,1769717442261,-630.0,0.00025423,2]
[404011809,1769717442269,-418.0,0.00025484,2]
[404011811,1769717442280,-179.0,0.00025484,2]
[404011812,1769717442289,-262.05,0.000256,2]
[404011814,1769717442298,-262.05,0.00026,2]
[404011816,1769717442307,-262.05,0.000264,2]
[404011818,1769717442316,-1000.0,0.00026454,30]
[404011820,1769717442326,-1000.0,0.00026454,30]
[404011822,1769717442339,-1000.0,0.00026454,30]
[404011824,1769717442348,-715.0,0.00026454,30]
[404011826,1769717442357,-771.5681101,0.00026588,2]
[404011828,1769717442366,-151.0,0.000266,14]
[404011830,1769717442376,-262.05,0.000268,2]
[404011832,1769717442385,-151.0,0.000268,17]
[404011834,1769717442395,-206.0,0.00027,7]
[404011836,1769717442405,-5756.57,0.0002709,10]
[404011837,1769717442413,-21601.08739889,0.000271,2]
[404011838,1769717442422,-1341.79490645,0.00027187,2]
[404011839,1769717442432,-151.0,0.000272,11]
[404011840,1769717442441,-151.0,0.000272,11]
[404011842,1769717442451,-262.05,0.000273,2]
[404011843,1769717442460,-398.76,0.000273,7]
[404011844,1769717442470,-613.56833113,0.00027397,2]
[404011845,1769717442480,-206.0,0.00027671,14]
[404011846,1769717442490,-262.05,0.000277,2]
[404011847,1769717442499,-156.0,0.00027836,26]
[404011848,1769717442508,-1369.0,0.00028173,2]
[404011850,1769717442518,-2150.0,0.00028173,2]
[404011851,1769717442527,-151.0,0.000283,19]
[404011852,1769717442537,-151.0,0.000284,11]
[404011854,1769717442546,-630.0,0.00028423,2]
[404011855,1769717442567,-418.0,0.00028484,2]
[404011856,1769717442578,-179.0,0.00028484,2]
[404011857,1769717442587,-824.57660622,0.00028588,2]
[404011858,1769717442597,-206.0,0.00028767,14]
[404011859,1769717442607,-11351.66821042,0.00028789,7]
[404011860,1769717442616,-18404.37849134,0.00028797,7]
[404011861,1769717442626,-160.0,0.00028797,7]
[404011862,1769717442635,-758.87398891,0.000289,2]
[404011863,1769717442645,-22763.07099926,0.00029,2]
[404011864,1769717442661,-384.90634955,0.00029,2]
[404011960,1769717446267,-1041.66666667,0.00020145,2]
[404011961,1769717446276,-1907.87798943,0.00029,2]
[404011962,1769717446321,-4004.24398262,0.00029,2]
[404011963,1769717446335,-2404.0,0.00029,2]
[404011964,1769717446380,-1171.36157072,0.00029,2]
[404011965,1769717446437,-4893.37121143,0.00029,2]
[404011966,1769717446449,-2404.0,0.00029,2]
[404011984,1769717727531,442.0,0.00026271,120]
[404011985,1769717728913,442.0,0.00027584,120]
[404011986,1769717730365,442.0,0.00028963,120]
[404011987,1769717743569,186.0,0.00024989,120]
[404011988,1769717745287,186.0,0.00026239,120]
[404011989,1769717746825,186.0,0.0002755,120]
[404011990,1769717748241,186.0,0.00028928,120]
[404011991,1769718015098,221.0,0.00027857,120]
[404011992,1769718018945,221.0,0.0002925,120]
[404011993,1769718031295,187.0,0.00027885,120]
[404011994,1769718032587,187.0,0.00029279,120]
[404011996,1769718314321,166.0,0.00027923,120]
[404011997,1769718315923,166.0,0.00029319,120]
[404012002,1769718521700,1766.92174569,6.546e-05,2]
[404012006,1769718610399,167.0,0.00027955,120]
[404012007,1769718611879,167.0,0.00029353,120]
[404012034,1769718632139,-468.155,9.728e-05,2]
[404012036,1769718632149,-395.775,9.728e-05,2]
[404012064,1769718638180,-160.225,9.728e-05,2]
[404012065,1769718638190,-204.32791347,9.728e-05,2]
[404012066,1769718638199,-178.786,9.728e-05,2]
[404012067,1769718638208,-300.0,9.825e-05,2]
[404012068,1769718638218,-300.0,9.825e-05,2]
[404012070,1769718638227,-1200.0,9.825e-05,2]
[404012071,1769718638237,-500.0,9.826e-05,2]
[404012072,1769718638246,-500.0,9.826e-05,2]
[404012073,1769718638256,-614.4532488,9.826e-05,2]
[404012074,1769718638265,-500.0,9.826e-05,2]
[404012075,1769718638275,-500.0,9.826e-05,2]
[404012076,1769718638284,-500.0,9.826e-05,2]
[404012077,1769718638293,-406.56302888,9.826e-05,2]
[404012078,1769718638302,-127576.85844526,9.827e-05,2]
[404012079,1769718638419,-157145.40473159,9.827e-05,2]
[404012081,1769718638429,-157.21,0.0001,2]
[404012082,1769718638438,-300.0,0.00010124,2]
[404012083,1769718638447,-300.0,0.00010124,2]
[404012085,1769718638456,-300.0,0.00010124,2]
[404012086,1769718638466,-300.0,0.00010124,2]
[404012088,1769718638475,-300.0,0.00010124,2]
[404012089,1769718638484,-300.0,0.00010124,2]
[404012090,1769718638494,-300.0,0.00010124,2]
[404012091,1769718638503,-300.0,0.00010124,2]
[404012092,1769718638512,-300.0,0.00010124,2]
[404012093,1769718638522,-300.0,0.00010124,2]
[404012094,1769718638531,-300.0,0.00010124,2]
[404012095,1769718638541,-300.0,0.00010124,2]
[404012096,1769718638551,-300.0,0.00010124,2]
[404012097,1769718638560,-300.0,0.00010124,2]
[404012098,1769718638569,-300.0,0.00010124,2]
[404012099,1769718638579,-600.0,0.00010124,2]
[404012100,1769718638588,-420.0,0.00010807,2]
[404012101,1769718638598,-720.0,0.00011136,2]
[404012102,1769718638607,-241.10693789,0.00011728,2]
[404012103,1769718638616,-587.0,0.00011888,2]
[404012104,1769718638625,-137.20832791,0.000119,2]
[404012105,1769718638637,-106.07986538,0.000119,2]
[404012106,1769718638646,-157.21,0.000122,2]
[404012107,1769718638655,-864.0,0.0001225,2]
[404012108,1769718638665,-262.9156376,0.00012424,2]
[404012109,1769718638674,-956.14885886,0.00012524,2]
[404012110,1769718638683,-500.0,0.00013273,2]
[404012111,1769718638693,-500.0,0.00013273,2]
[404012112,1769718638705,-299.98255464,0.00013273,2]
[404012113,1769718638715,-500.0,0.00013273,2]
[404012114,1769718638724,-500.0,0.00013273,2]
[404012115,1769718638734,-500.0,0.00013273,2]
[404012116,1769718638745,-500.0,0.00013273,2]
[404012117,1769718638756,-479.64135791,0.00013273,2]
[404012118,1769718638766,-500.0,0.00013273,2]
[404012119,1769718638776,-403.84443092,0.00013273,2]
[404012120,1769718638787,-500.0,0.00013273,2]
[404012121,1769718638796,-500.0,0.00013273,2]
[404012122,1769718638806,-500.0,0.00013273,2]
[404012123,1769718638815,-500.0,0.00013273,2]
[404012124,1769718638824,-500.0,0.00013273,2]
[404012125,1769718638833,-500.0,0.00013273,2]
[404012126,1769718638842,-500.0,0.00013273,2]
[404012127,1769718638852,-500.0,0.00013273,2]
[404012128,1769718638861,-500.0,0.00013273,2]
[404012129,1769718638870,-295.75719017,0.00013273,2]
[404012130,1769718638880,-500.0,0.00013273,2]
[404012131,1769718638889,-238.65486629,0.00013273,2]
[404012132,1769718638898,-500.0,0.00013273,2]
[404012133,1769718638907,-500.0,0.00013273,2]
[404012134,1769718638916,-1000.0,0.00013475,2]
[404012135,1769718638926,-2618.92612532,0.000135,2]
[404012136,1769718638938,-407.89,0.000135,2]
[404012178,1769718640443,-919.35239916,0.000135,2]
[404012195,1769718644422,-1058.48201203,0.000135,2]
[404012196,1769718644432,-3789.85,0.0001369,2]
[404012197,1769718644441,-500.0,0.00013698,2]
[404012198,1769718644450,-500.0,0.00013698,2]
[404012199,1769718644459,-248.70491476,0.00013698,2]
[404012201,1769718645116,-251.29508524,0.00013698,2]
[404012202,1769718645125,-500.0,0.00013698,2]
[404012203,1769718645134,-500.0,0.00013698,2]
[404012204,1769718645144,-547.98655577,0.00013698,2]
[404012205,1769718645153,-234.01413472,0.00013698,2]
[404012206,1769718645162,-213.08918261,0.00013698,2]
[404012207,1769718645170,-500.0,0.00013698,2]
[404012208,1769718645179,-500.0,0.00013698,2]
[404012209,1769718645188,-272.40792338,0.00013698,2]
[404012217,1769718646647,-227.59207662,0.00013698,2]
[404012218,1769718646659,-500.0,0.00013698,2]
[404012219,1769718646669,-500.0,0.00013698,2]
[404012220,1769718646679,-500.0,0.00013698,2]
[404012222,1769718646688,-500.0,0.00013698,2]
[404012224,1769718646697,-500.0,0.00013698,2]
[404012226,1769718646708,-500.0,0.00013698,2]
[404012227,1769718646717,-500.0,0.00013698,2]
[404012228,1769718646726,-379.43,0.00013698,2]
[404012229,1769718646735,-500.0,0.00013698,2]
[404012230,1769718646745,-500.0,0.00013698,2]
[404012231,1769718646754,-500.0,0.00013698,2]
[404012232,1769718646766,-500.0,0.00013698,2]
[404012233,1769718646775,-500.0,0.00013698,2]
[404012234,1769718646786,-500.0,0.00013698,2]
[404012235,1769718646796,-500.0,0.00013698,2]
[404012236,1769718646805,-500.0,0.00013698,2]
[404012237,1769718646814,-500.0,0.00013698,2]
[404012238,1769718646823,-500.0,0.00013698,2]
[404012239,1769718646832,-500.0,0.00013698,2]
[404012240,1769718646841,-504.02452176,0.00013698,2]
[404012241,1769718646851,-500.0,0.00013699,2]
[404012242,1769718646860,-500.0,0.00013699,2]
[404012243,1769718646868,-500.0,0.00013699,2]
[404012244,1769718646878,-500.0,0.00013699,2]
[404012245,1769718646887,-500.0,0.00013699,2]
[404012246,1769718646896,-243.76742422,0.00013699,2]
[404012247,1769718646905,-500.0,0.00013699,2]
[404012248,1769718646914,-500.0,0.00013699,2]
[404012249,1769718646922,-500.0,0.00013699,2]
[404012250,1769718646931,-500.0,0.00013699,2]
[404012251,1769718646940,-500.0,0.00013699,2]
[404012252,1769718646950,-500.0,0.00013699,2]
[404012253,1769718646959,-500.0,0.00013699,2]
[404012254,1769718646968,-500.0,0.00013699,2]
[404012255,1769718646976,-500.0,0.00013699,2]
[404012256,1769718646985,-436.01223429,0.00013699,2]
[404012257,1769718646994,-500.0,0.00013699,2]
[404012258,1769718647003,-500.0,0.00013699,2]
[404012259,1769718647012,-500.0,0.00013699,2]
[404012260,1769718647021,-500.0,0.00013699,2]
[404012261,1769718647030,-500.0,0.00013699,2]
[404012262,1769718647039,-445.98241214,0.00013699,2]
[404012263,1769718647049,-500.0,0.00013699,2]
[404012264,1769718647058,-500.0,0.00013699,2]
[404012265,1769718647067,-500.0,0.00013699,2]
[404012266,1769718647077,-500.0,0.00013699,2]
[404012267,1769718647086,-500.0,0.00013699,2]
[404012268,1769718647095,-504.3433977,0.00013699,2]
[404012269,1769718647104,-500.0,0.00013699,2]
[404012270,1769718647113,-500.0,0.00013699,2]
[404012271,1769718647123,-500.0,0.00013699,2]
[404012272,1769718647132,-500.0,0.00013699,2]
[404012273,1769718647141,-500.0,0.00013699,2]
[404012274,1769718647150,-500.0,0.00013699,2]
[404012275,1769718647159,-500.0,0.00013699,2]
[404012276,1769718647169,-500.0,0.00013699,2]
[404012277,1769718647179,-500.0,0.00013699,2]
[404012278,1769718647188,-500.0,0.00013699,2]
[404012279,1769718647197,-500.0,0.00013699,2]
[404012280,1769718647207,-500.0,0.00013699,2]
[404012281,1769718647216,-500.0,0.00013699,2]
[404012282,1769718647226,-450.00736292,0.00013699,2]
[404012283,1769718647235,-500.0,0.00013699,2]
[404012284,1769718647244,-500.0,0.00013699,2]
[404012285,1769718647252,-500.0,0.00013699,2]
[404012286,1769718647262,-500.0,0.00013699,2]
[404012287,1769718647272,-500.0,0.00013699,2]
[404012288,1769718647281,-614.12659995,0.00013699,2]
[404012289,1769718647290,-500.0,0.00013699,2]
[404012290,1769718647299,-500.0,0.00013699,2]
[404012291,1769718647309,-227.56981312,0.00013699,2]
[404012292,1769718647318,-500.0,0.00013699,2]
[404012293,1769718647328,-500.0,0.00013699,2]
[404012294,1769718647337,-500.0,0.00013699,2]
[404012295,1769718647347,-500.0,0.00013699,2]
[404012296,1769718647356,-500.0,0.00013699,2]
[404012297,1769718647365,-500.0,0.00013699,2]
[404012298,1769718647374,-500.32406849,0.00013699,2]
[404012299,1769718647383,-500.0,0.00013699,2]
[404012300,1769718647394,-459.28481038,0.00013699,2]
[404012301,1769718647404,-500.0,0.00013699,2]
[404012302,1769718647413,-500.0,0.00013699,2]
[404012303,1769718647422,-500.0,0.00013699,2]
[404012304,1769718647432,-500.0,0.00013699,2]
[404012305,1769718647441,-543.71404472,0.00013699,2]
[404012306,1769718647451,-500.0,0.00013699,2]
[404012307,1769718647459,-605.01551444,0.00013699,2]
[404012308,1769718647468,-500.0,0.00013699,2]
[404012309,1769718647478,-500.0,0.00013699,2]
[404012310,1769718647489,-500.0,0.00013699,2]
[404012311,1769718647498,-500.0,0.00013699,2]
[404012312,1769718647507,-500.0,0.00013699,2]
[404012313,1769718647516,-500.0,0.00013699,2]
[404012314,1769718647525,-225.98244329,0.00013699,2]
[404012315,1769718647535,-500.0,0.00013699,2]
[404012316,1769718647544,-500.0,0.00013699,2]
[404012317,1769718647554,-500.0,0.00013699,2]
[404012318,1769718647563,-500.0,0.00013699,2]
[404012319,1769718647572,-500.0,0.00013699,2]
[404012320,1769718647582,-500.0,0.00013699,2]
[404012321,1769718647591,-533.83538539,0.00013699,2]
[404012322,1769718647602,-277.88596231,0.00013728,2]
[404012323,1769718647611,-1000.0,0.00013821,2]
[404012324,1769718647621,-338.45854352,0.00013821,2]
[404012325,1769718647631,-1000.0,0.00013821,2]
[404012326,1769718647640,-1000.0,0.00013821,2]
[404012327,1769718647650,-1000.0,0.00013821,2]
[404012328,1769718647660,-1000.0,0.00013821,2]
[404012329,1769718647669,-1000.0,0.00013821,2]
[404012330,1769718647678,-1000.0,0.00013821,2]
[404012331,1769718647687,-893.82090836,0.00013821,2]
[404012332,1769718647697,-1000.0,0.00013821,2]
[404012333,1769718647707,-1000.0,0.00013821,2]
[404012334,1769718647717,-6434.02130439,0.00014,2]
[404012335,1769718647726,-342.25454897,0.00014247,2]
[404012336,1769718647735,-658.68078088,0.00014247,2]
[404012337,1769718647745,-445.401138,0.00014247,2]
[404012338,1769718647754,-157.21,0.000145,2]
[404012339,1769718647763,-151.0,0.000146,2]
[404012340,1769718647772,-1000.0,0.00014823,2]
[404012341,1769718647786,-244.0,0.00014823,2]
[404012342,1769718647795,-10000.0,0.00015342,2]
[404012343,1769718647804,-31686.72743198,0.000154,2]
[404012344,1769718647814,-10000.0,0.00015442,2]
[404012345,1769718647823,-160.0,0.0001549,2]
[404012346,1769718647832,-1041.66666667,0.0001549,2]
[404012347,1769718647842,-314.66498674,0.00015728,2]
[404012348,1769718647852,-1000.0,0.00016305,2]
[404012349,1769718647860,-492.0,0.00016305,2]
[404012350,1769718647870,-151.0,0.000164,2]
[404012351,1769718647879,-157.21,0.000167,2]
[404012352,1769718647888,-162.0,0.00017534,3]
[404012353,1769718647898,-351.44401116,0.00017728,2]
[404012354,1769718647908,-500.0,0.00017744,2]
[404012355,1769718647917,-500.0,0.00017744,2]
[404012356,1769718647926,-500.0,0.00017881,2]
[404012357,1769718647935,-577.29,0.00017881,2]
[404012358,1769718647944,-1000.0,0.00017935,2]
[404012359,1769718647953,-791.0,0.00017935,2]
[404012360,1769718647963,-190.85969556,0.00018018,2]
[404012361,1769718647972,-151.0,0.000182,2]
[404012362,1769718647981,-174.46028976,0.00018429,2]
[404012363,1769718647991,-190.17419619,0.00018429,2]
[404012364,1769718648000,-250.0,0.00018429,2]
[404012365,1769718648009,-157.21,0.000189,2]
[404012366,1769718648018,-303.10001603,0.000189,2]